[Event "WYCC 2018 G14"]
[Site "Halkidiki"]
[Date "2018.10.23"]
[Round "5"]
[White "Toncheva, Nadya"]
[Black "Gabbani, Sara"]
[Result "1/2-1/2"]
[ECO "D10"]
[WhiteElo "2002"]
[BlackElo "1764"]
[Annotator "NA"]
[PlyCount "107"]
[EventDate "2018.10.20"]
[EventType "swiss"]
[EventCountry "GRE"]
[SourceTitle "playchess.com"]
[Source "ChessBase"]
[SourceQuality "1"]
[TimeControl "40/5400+30:1800+30"]

1. d4 d5 2. c4 c6 3. Nc3 dxc4 4. e4 b5 $1 5. a4 b4 6. Na2 Nf6 7. f3 e5 8. dxe5 Qxd1+ 9. Kxd1 Nfd7 10. e6 fxe6 11. Bxc4 $15 {LiveBook: 8 Games} Nb6 12. Bb3 a5 13. Be3 c5 14. Rc1 Na6 15. Nh3 Bd7 16. Ng5 Nxa4 17. Kc2 Rc8 18. Kb1 Nb6 19. Bxe6 Bxe6 20. Nxe6 Kf7 21. Ng5+ Ke8 22. e5 Nd5 23. Bf2 Be7 24. Ne4 Nf4 25. Rc4 g5 26. g4 h5 27. Nc1 a4 28. Bg3 Nd5 29. Re1 Kd7 30. e6+ Kc6 31. Nd3 h4 32. Ne5+ Kb5 33. Bf2 Nf4 34. Rc2 Nxe6 35. Nf7 Rhd8 36. Nxd8 Rxd8 37. Nc3+ bxc3 38. Rxe6 Nb4 39. Rxc3 Bf8 40. Re1 Nd3 41. Rd1 c4 42. Be3 Be7 43. Rc2 Rf8 44. Rf1 Rd8 45. Re2 Bf6 46. f4 Re8 47. fxg5 Bxb2 48. Rxb2+ Nxb2 49. Bd4 Nd3 50. g6 Kb4 51. Rf5 a3 52. g7 Kb3 53. Rb5+ Ka4 54. Rf5 1/2-1/2

[Event "WYCC 2018 G14"]
[Site "Halkidiki"]
[Date "2018.10.23"]
[Round "5"]
[White "Kamalidenova, Meruert"]
[Black "Sleurs, Juliette"]
[Result "1-0"]
[ECO "D02"]
[WhiteElo "1999"]
[BlackElo "1812"]
[Annotator "NA"]
[PlyCount "123"]
[EventDate "2018.10.20"]
[EventType "swiss"]
[EventCountry "GRE"]
[SourceTitle "playchess.com"]
[Source "ChessBase"]
[SourceQuality "1"]
[TimeControl "40/5400+30:1800+30"]

1. d4 {[%emt 0:00:00]} d5 {[%emt 0:00:00]} 2. Nf3 {[%emt 0:00:00]} Nf6 {[%emt 0:00:00]} 3. c4 {[%emt 0:00:00]} c6 {[%emt 0:00:00]} 4. g3 {[%emt 0:00:00]} Bf5 {[%emt 0:02:29]} 5. Bg2 {[%emt 0:01:14]} e6 {[%emt 0:00:39]} 6. O-O {[%emt 0:00:30]} Be7 {[%emt 0:00:28]} 7. Nc3 h6 {[%emt 0:01:25]} 8. Nd2 {[%emt 0:02:28]} O-O {[%emt 0:01:05]} 9. e4 {[%emt 0:01:18]} dxe4 {[%emt 0:03:58]} 10. Ndxe4 {[%emt 0:00:46]} Nxe4 {[%emt 0:08:58]} 11. Nxe4 {[%emt 0:00:38]} Nd7 {[%emt 0:07:47]} 12. Be3 {[%emt 0:03:21]} Nf6 {[%emt 0:02:52]} 13. Nc3 {[%emt 0:01:35]} Qb6 {[%emt 0:05:42]} 14. Qe2 {[%emt 0:02:56]} Qa6 {[%emt 0:02:50]} 15. h3 {[%emt 0:03:24]} Rab8 {[%emt 0:05:58]} 16. Bf4 {[%emt 0:02:20]} Rbd8 {[%emt 0:01:25]} 17. Rfd1 {[%emt 0:02:06]} Rd7 {[%emt 0:05:24]} 18. Bf1 {[%emt 0:07:54]} Rfd8 {[%emt 0:04:14]} 19. Be3 {[%emt 0:02:46]} Qa5 20. a3 a6 {[%emt 0:07:28]} 21. b4 {[%emt 0:02:51]} Qc7 {[%emt 0:00:09]} 22. Rac1 {[%emt 0:01:27]} a5 23. Qb2 {[%emt 0:01:46]} axb4 {[%emt 0:05:11]} 24. axb4 {[%emt 0:00:30]} b6 {[%emt 0:01:17]} 25. Bg2 {[%emt 0:03:21]} Rb8 {[%emt 0:12:56]} 26. Ra1 b5 27. cxb5 {[%emt 0:02:15]} cxb5 {[%emt 0:00:43]} 28. Rdc1 {[%emt 0:03:58]} Qd8 {[%emt 0:02:40]} 29. Ra5 {[%emt 0:18:48]} Nd5 {[%emt 0:03:44]} 30. Nxd5 {[%emt 0:01:50]} exd5 {[%emt 0:00:06]} 31. Bf4 {[%emt 0:01:40]} Bd6 {[%emt 0:02:17]} 32. Bxd6 {[%emt 0:01:55]} Rxd6 {[%emt 0:00:06]} 33. Bf1 {[%emt 0:00:28]} Qd7 {[%emt 0:01:05]} 34. Kh2 {[%emt 0:01:16]} Rdb6 {[%emt 0:04:54]} 35. Qd2 {[%emt 0:02:23]} Qb7 {[%emt 0:04:41]} 36. Qf4 {[%emt 0:01:03]} Rc8 {[%emt 0:02:14]} 37. Rc5 {[%emt 0:02:36]} Bd7 {[%emt 0:00:28]} 38. Qe5 {[%emt 0:04:36]} Re8 {[%emt 0:01:42]} 39. Qc7 {[%emt 0:00:00]} Rb8 {[%emt 0:00:00]} 40. Ra7 {[%emt 0:00:00]} Qxc7 {[%emt 0:00:00]} 41. Rcxc7 {[%emt 0:04:52]} Be6 {[%emt 0:09:06]} 42. f4 {[%emt 0:02:45]} Rf8 {[%emt 0:09:38]} 43. Bg2 {[%emt 0:02:20]} g6 {[%emt 0:01:03]} 44. g4 {[%emt 0:01:52]} h5 {[%emt 0:00:27]} 45. Kg3 hxg4 46. hxg4 {[%emt 0:00:58]} Rbb8 {[%emt 0:03:37]} 47. Kh4 {[%emt 0:04:09]} Ra8 {[%emt 0:04:01]} 48. Kg5 {[%emt 0:01:43]} Rxa7 {[%emt 0:02:23]} 49. Rxa7 {[%emt 0:00:54]} Rc8 {[%emt 0:00:10]} 50. f5 {[%emt 0:02:16]} gxf5 {[%emt 0:01:31]} 51. gxf5 {[%emt 0:00:16]} Rc2 {[%emt 0:00:42]} 52. Bf3 {[%emt 0:01:58]} Bxf5 {[%emt 0:01:01]} 53. Kxf5 {[%emt 0:00:05]} Rc4 {[%emt 0:00:07]} 54. Ke5 {[%emt 0:00:35]} f6+ {[%emt 0:01:21]} 55. Kxd5 {[%emt 0:00:29]} Rxb4 {[%emt 0:00:08]} 56. Rb7 {[%emt 0:00:28]} Kf8 {[%emt 0:00:31]} 57. Be2 {[%emt 0:00:28]} f5 {[%emt 0:00:36]} 58. Rxb5 {[%emt 0:00:20]} Ra4 {[%emt 0:00:19]} 59. Rb3 {[%emt 0:00:58]} Ke7 {[%emt 0:00:24]} 60. Ke5 {[%emt 0:00:21]} Ra5+ {[%emt 0:00:14]} 61. d5 {[%emt 0:00:07]} Kd7 {[%emt 0:01:28]} 62. Bf3 {[%emt 0:00:08]} 1-0

[Event "WYCC 2018 G14"]
[Site "Halkidiki"]
[Date "2018.10.23"]
[Round "5"]
[White "Guillo Longares, Cecilia"]
[Black "Divya Deshmukh"]
[Result "0-1"]
[ECO "E16"]
[WhiteElo "1998"]
[BlackElo "2180"]
[Annotator "NA"]
[PlyCount "58"]
[EventDate "2018.10.20"]
[EventType "swiss"]
[EventCountry "GRE"]
[SourceTitle "playchess.com"]
[Source "ChessBase"]
[SourceQuality "1"]
[TimeControl "40/5400+30:1800+30"]

1. d4 {[%emt 0:00:00]} Nf6 {[%emt 0:00:00]} 2. c4 {[%emt 0:00:00]} e6 {[%emt 0:00:00]} 3. Nf3 {[%emt 0:00:00]} Bb4+ {[%emt 0:00:00]} 4. Bd2 {[%emt 0:00:00]} Qe7 {[%emt 0:00:00]} 5. g3 {[%emt 0:00:00]} Nc6 {[%emt 0:00:00]} 6. Bg2 {[%emt 0:00:03] LiveBook: 1449 Games} Bxd2+ {[%emt 0:00:05]} 7. Nbxd2 {[%emt 0:00:49]} d6 {[%emt 0:00:05]} 8. O-O {[%emt 0:00:12]} O-O {[%emt 0:00:03]} 9. Rb1 {[%emt 0:01:03]} a5 {[%emt 0:02:01]} 10. b3 {[%emt 0:00:34]} e5 {[%emt 0:02:31]} 11. dxe5 {[%emt 0:00:55]} dxe5 {[%emt 0:01:10]} 12. Qc2 {[%emt 0:01:28]} e4 {[%emt 0:14:33]} 13. Nh4 {[%emt 0:08:01]} g5 {[%emt 0:10:57]} 14. Nxe4 {[%emt 0:00:59]} gxh4 $19 {[%emt 0:00:49]} 15. gxh4 {[%emt 0:01:44]} Nxe4 {[%emt 0:10:10]} 16. Bxe4 {[%emt 0:01:59]} Nb4 {[%emt 0:01:42]} 17. Bxh7+ {[%emt 0:00:32]} Kh8 {[%emt 0:00:07]} 18. Qe4 {[%emt 0:00:20]} Qf6 {[%emt 0:00:09]} 19. a3 {[%emt 0:05:05]} Bh3 {[%emt 0:04:25]} 20. Rfd1 {[%emt 0:01:17]} Rae8 {[%emt 0:00:11]} 21. Qf3 {[%emt 0:02:23]} Qxf3 {[%emt 0:00:09]} 22. exf3 {[%emt 0:00:03]} Kxh7 {[%emt 0:00:08]} 23. axb4 {[%emt 0:00:06]} Rg8+ {[%emt 0:00:03]} 24. Kh1 {[%emt 0:00:07]} Bg2+ {[%emt 0:00:03]} 25. Kg1 {[%emt 0:00:04]} Bxf3+ {[%emt 0:00:04]} 26. Kf1 {[%emt 0:00:04]} Be2+ {[%emt 0:00:03]} 27. Ke1 {[%emt 0:00:08]} Rg1+ {[%emt 0:00:05]} 28. Kd2 {[%emt 0:00:04]} Bxd1 {[%emt 0:00:04]} 29. Rxd1 {[%emt 0:00:06]} Rd8+ {[%emt 0:00:03]} 0-1

[Event "WYCC 2018 G14"]
[Site "Halkidiki"]
[Date "2018.10.23"]
[Round "5"]
[White "Eizaguerri Floris, Maria"]
[Black "Nguyen, Thien Ngan"]
[Result "1-0"]
[ECO "C54"]
[WhiteElo "1987"]
[BlackElo "1888"]
[Annotator "NA"]
[PlyCount "99"]
[EventDate "2018.10.20"]
[EventType "swiss"]
[EventCountry "GRE"]
[SourceTitle "playchess.com"]
[Source "ChessBase"]
[SourceQuality "1"]
[TimeControl "40/5400+30:1800+30"]

1. e4 {[%emt 0:00:00]} e5 {[%emt 0:00:00]} 2. Nf3 {[%emt 0:00:00]} Nc6 {[%emt 0:00:00]} 3. Bc4 {[%emt 0:00:00]} Bc5 {[%emt 0:00:00]} 4. c3 {[%emt 0:00:00]} Nf6 {[%emt 0:00:00]} 5. d4 {[%emt 0:00:00]} exd4 {[%emt 0:00:00]} 6. e5 {[%emt 0:00:07]} d5 {[%emt 0:00:05]} 7. Bb5 {[%emt 0:00:06]} Ne4 {[%emt 0:00:26]} 8. cxd4 {[%emt 0:00:12]} Bb6 {[%emt 0:00:34]} 9. Nc3 {[%emt 0:00:45]} Bg4 {[%emt 0:01:51]} 10. Be3 {[%emt 0:03:13]} O-O {[%emt 0:01:36]} 11. h3 {[%emt 0:00:42]} Bh5 {[%emt 0:01:56]} 12. Qc2 {[%emt 0:00:54]} Bg6 {[%emt 0:01:20]} 13. Qb3 {[%emt 0:00:08]} Ba5 {[%emt 0:06:01]} 14. O-O {[%emt 0:03:18]} Ne7 {[%emt 0:02:50]} 15. Nh4 $14 {[%emt 0:02:16]} Nf5 {[%emt 0:04:22]} 16. Nxg6 {[%emt 0:14:12]} hxg6 {[%emt 0:05:48]} 17. Nxe4 {[%emt 0:00:10]} dxe4 {[%emt 0:01:12]} 18. Rfd1 {[%emt 0:01:24]} c6 {[%emt 0:04:02]} 19. Be2 {[%emt 0:05:30]} Bb6 {[%emt 0:06:10]} 20. Qc3 {[%emt 0:02:39]} Qh4 {[%emt 0:04:58]} 21. a4 {[%emt 0:15:13]} Rac8 {[%emt 0:10:17]} 22. a5 {[%emt 0:09:23]} Bd8 {[%emt 0:01:49]} 23. a6 {[%emt 0:03:31]} b6 {[%emt 0:03:49]} 24. d5 {[%emt 0:01:26]} Bg5 {[%emt 0:05:38]} 25. Bxg5 {[%emt 0:09:28]} Qxg5 {[%emt 0:00:09]} 26. d6 {[%emt 0:01:41]} e3 {[%emt 0:03:39]} 27. Rf1 {[%emt 0:01:14]} Nh4 {[%emt 0:07:19]} 28. Bg4 {[%emt 0:03:38]} e2 {[%emt 0:08:17]} 29. Rfe1 {[%emt 0:00:13]} Rce8 {[%emt 0:01:33]} 30. Rxe2 {[%emt 0:02:14]} f5 {[%emt 0:00:56]} 31. Qc4+ {[%emt 0:01:20]} Kh7 {[%emt 0:01:42]} 32. f4 {[%emt 0:00:15]} Qh6 {[%emt 0:00:29]} 33. Bf3 {[%emt 0:00:26]} Nxf3+ {[%emt 0:01:40]} 34. gxf3 {[%emt 0:00:05]} Qh4 {[%emt 0:00:47]} 35. e6 {[%emt 0:07:39]} b5 {[%emt 0:06:29]} 36. Qd4 {[%emt 0:07:48]} c5 {[%emt 0:04:33]} 37. Qe5 {[%emt 0:01:03]} Qg3+ {[%emt 0:02:21]} 38. Rg2 {[%emt 0:00:14]} Qxf3 {[%emt 0:00:29]} 39. e7 {[%emt 0:00:38]} Rf7 {[%emt 0:00:47]} 40. d7 {[%emt 0:00:00]} Rexe7 {[%emt 0:00:00]} 41. d8=Q {[%emt 0:02:10]} Rxe5 {[%emt 0:01:14]} 42. fxe5 {[%emt 0:00:49]} Qe3+ {[%emt 0:00:58]} 43. Kh1 {[%emt 0:00:09]} f4 {[%emt 0:00:30]} 44. Qh4+ {[%emt 0:01:54]} Kg8 {[%emt 0:00:07]} 45. Re1 {[%emt 0:00:33]} Qf3 {[%emt 0:03:17]} 46. e6 {[%emt 0:01:05]} Rf8 {[%emt 0:00:52]} 47. Qg4 {[%emt 0:02:10]} Qd3 {[%emt 0:01:12]} 48. Qxg6 {[%emt 0:00:36]} Qxh3+ {[%emt 0:00:30]} 49. Kg1 {[%emt 0:00:05]} Qh7 {[%emt 0:00:32]} 50. e7 {[%emt 0:00:26]} 1-0

[Event "WYCC 2018 G14"]
[Site "Halkidiki"]
[Date "2018.10.23"]
[Round "5"]
[White "Stepanyan, Eva"]
[Black "Kurmangaliyeva, Liya"]
[Result "1-0"]
[ECO "B56"]
[WhiteElo "1981"]
[BlackElo "1733"]
[Annotator "NA"]
[PlyCount "95"]
[EventDate "2018.10.20"]
[EventType "swiss"]
[EventCountry "GRE"]
[SourceTitle "playchess.com"]
[Source "ChessBase"]
[SourceQuality "1"]
[TimeControl "40/5400+30:1800+30"]

1. e4 {[%emt 0:00:00]} c5 {[%emt 0:00:00]} 2. Nf3 {[%emt 0:00:00]} Nc6 {[%emt 0:00:00]} 3. d4 {[%emt 0:00:00]} cxd4 {[%emt 0:00:00]} 4. Nxd4 {[%emt 0:00:00]} Nf6 {[%emt 0:00:00]} 5. Nc3 {[%emt 0:00:00]} d6 $14 {[%emt 0:00:08] LiveBook: 31986 Games} 6. f3 {[%emt 0:00:20]} e5 {[%emt 0:00:06]} 7. Nb3 {[%emt 0:00:14]} Be7 {[%emt 0:00:07]} 8. Be3 {[%emt 0:00:45]} Be6 {[%emt 0:00:06]} 9. Nd5 {[%emt 0:01:35]} Bxd5 {[%emt 0:00:05]} 10. exd5 {[%emt 0:00:08]} Nb4 {[%emt 0:00:21]} 11. c4 {[%emt 0:00:51]} a5 {[%emt 0:00:04]} 12. Qd2 {[%emt 0:07:14]} b6 {[%emt 0:00:06]} 13. Be2 {[%emt 0:01:56]} Na6 {[%emt 0:04:23]} 14. O-O {[%emt 0:03:09]} O-O {[%emt 0:01:46]} 15. Nc1 {[%emt 0:05:06]} Nd7 {[%emt 0:08:10]} 16. Bd3 {[%emt 0:07:50]} f5 {[%emt 0:13:44]} 17. Ne2 {[%emt 0:05:16]} f4 {[%emt 0:10:24]} 18. Bf2 {[%emt 0:00:15]} Nac5 {[%emt 0:05:06]} 19. Bc2 {[%emt 0:02:00]} Bg5 {[%emt 0:05:23]} 20. Nc3 {[%emt 0:02:16]} Rc8 {[%emt 0:05:15]} 21. Qe2 {[%emt 0:05:35]} Qf6 {[%emt 0:08:17]} 22. a3 {[%emt 0:05:11]} Bh4 {[%emt 0:11:19]} 23. Bxc5 {[%emt 0:15:10]} Nxc5 {[%emt 0:07:52]} 24. b4 {[%emt 0:02:37]} Nb7 {[%emt 0:00:28]} 25. Ne4 {[%emt 0:01:59]} Qd8 {[%emt 0:00:58]} 26. Ba4 {[%emt 0:03:01]} Be7 {[%emt 0:02:07]} 27. Rfc1 {[%emt 0:03:46]} Qc7 {[%emt 0:02:47]} 28. Qd3 {[%emt 0:04:07]} Rfd8 {[%emt 0:03:26]} 29. Bc6 {[%emt 0:02:29]} Qb8 {[%emt 0:03:57]} 30. Qb3 {[%emt 0:01:18]} Qc7 {[%emt 0:02:48]} 31. Bxb7 {[%emt 0:04:20]} a4 {[%emt 0:00:29]} 32. Qxa4 {[%emt 0:00:38]} Qxb7 {[%emt 0:00:03]} 33. Qb3 {[%emt 0:00:46]} Kh8 {[%emt 0:01:20]} 34. a4 {[%emt 0:01:53]} Qd7 {[%emt 0:01:20]} 35. a5 {[%emt 0:01:28]} bxa5 {[%emt 0:00:03]} 36. Rxa5 {[%emt 0:00:14]} g5 {[%emt 0:01:42]} 37. Rca1 {[%emt 0:01:07]} Rc7 {[%emt 0:01:34]} 38. h3 {[%emt 0:02:56]} h5 {[%emt 0:00:53]} 39. Ra8 {[%emt 0:05:10]} Rdc8 {[%emt 0:01:38]} 40. Rxc8+ {[%emt 0:00:00]} Rxc8 {[%emt 0:00:00]} 41. c5 {[%emt 0:17:47]} g4 {[%emt 0:09:46]} 42. hxg4 {[%emt 0:07:18]} hxg4 {[%emt 0:01:49]} 43. fxg4 {[%emt 0:01:17]} Qb7 {[%emt 0:10:20]} 44. g5 {[%emt 0:05:10]} Kg7 {[%emt 0:05:45]} 45. Qh3 {[%emt 0:03:03]} dxc5 {[%emt 0:03:32]} 46. Qh6+ {[%emt 0:00:14]} Kg8 {[%emt 0:00:34]} 47. Qe6+ {[%emt 0:00:11]} Kf8 {[%emt 0:00:17]} 48. g6 {[%emt 0:01:54]} 1-0

[Event "WYCC 2018 G14"]
[Site "Halkidiki"]
[Date "2018.10.23"]
[Round "5"]
[White "Lehaci, Miruna-Daria"]
[Black "Wen, Yili"]
[Result "0-1"]
[ECO "E12"]
[WhiteElo "1933"]
[BlackElo "2083"]
[Annotator "NA"]
[PlyCount "82"]
[EventDate "2018.10.20"]
[EventType "swiss"]
[EventCountry "GRE"]
[SourceTitle "playchess.com"]
[Source "ChessBase"]
[SourceQuality "1"]
[TimeControl "40/5400+30:1800+30"]

1. d4 Nf6 2. Nf3 b6 3. c4 e6 4. a3 Bb7 5. Nc3 d5 6. cxd5 Nxd5 7. Qc2 Be7 8. Bd2 O-O 9. e4 Nxc3 10. Bxc3 c5 11. dxc5 bxc5 12. Rd1 Qc8 13. Bd3 Ba6 14. O-O Bxd3 15. Rxd3 Nd7 16. Nd2 Nb6 17. Rg3 f6 18. f4 Qa6 19. Qd1 Rf7 20. f5 e5 21. Qh5 Nd7 22. Nb1 Nf8 23. Bd2 Qb7 24. Qg4 Nd7 25. Bh6 Bf8 26. Bc1 c4 27. Nc3 Nc5 28. Qe2 Nd3 29. b4 a5 30. bxa5 Rxa5 31. a4 Bb4 32. Bd2 Bxc3 33. Bxc3 Rxa4 34. Kh1 Qa7 35. Bd2 Ra2 36. Qd1 Nf2+ 37. Rxf2 Ra1 38. Rf1 Rxd1 39. Rxd1 Qd4 40. Ra3 Rd7 41. h4 Qb2 0-1

[Event "WYCC 2018 G14"]
[Site "Halkidiki"]
[Date "2018.10.23"]
[Round "5"]
[White "Zhu, Evelyn"]
[Black "Arauco Celestino, Arianna Sofia"]
[Result "1-0"]
[ECO "D47"]
[WhiteElo "1926"]
[BlackElo "1610"]
[Annotator "NA"]
[PlyCount "95"]
[EventDate "2018.10.20"]
[EventType "swiss"]
[EventCountry "GRE"]
[SourceTitle "playchess.com"]
[Source "ChessBase"]
[SourceQuality "1"]
[TimeControl "40/5400+30:1800+30"]

1. d4 {[%emt 0:00:00]} d5 {[%emt 0:02:36]} 2. c4 {[%emt 0:00:00]} c6 {[%emt 0:00:09]} 3. Nc3 {[%emt 0:00:00]} Nf6 {[%emt 0:00:05]} 4. e3 {[%emt 0:00:00]} e6 {[%emt 0:00:09]} 5. Nf3 {[%emt 0:00:00]} Nbd7 {[%emt 0:00:49]} 6. Bd3 {[%emt 0:00:50]} dxc4 {[%emt 0:00:29]} 7. Bxc4 {[%emt 0:00:05]} b5 {[%emt 0:00:16]} 8. Bd3 {[%emt 0:00:11]} Bd6 {[%emt 0:00:27]} 9. a4 {[%emt 0:05:01]} b4 {[%emt 0:06:21]} 10. Ne4 {[%emt 0:02:22]} Be7 {[%emt 0:05:26]} 11. O-O {[%emt 0:02:37]} a5 {[%emt 0:04:58]} 12. Nxf6+ {[%emt 0:04:31]} Nxf6 {[%emt 0:02:17]} 13. Ne5 {[%emt 0:04:01]} Qc7 {[%emt 0:02:24]} 14. Nxc6 {[%emt 0:08:56]} Bd6 {[%emt 0:03:54]} 15. f4 {[%emt 0:02:18]} Bb7 {[%emt 0:05:39]} 16. Ne5 {[%emt 0:01:38]} O-O {[%emt 0:01:12]} 17. Bd2 {[%emt 0:04:48]} Rfc8 {[%emt 0:03:35]} 18. Rc1 {[%emt 0:03:50]} Qe7 {[%emt 0:00:31]} 19. Nc4 {[%emt 0:02:07]} Bc7 {[%emt 0:02:48]} 20. Qc2 {[%emt 0:03:05]} h6 {[%emt 0:03:30]} 21. h3 {[%emt 0:07:52]} Nh5 {[%emt 0:06:31]} 22. Be1 {[%emt 0:04:32]} f5 {[%emt 0:04:38]} 23. Qe2 {[%emt 0:04:34]} Qe8 {[%emt 0:09:29]} 24. Nd2 {[%emt 0:19:20]} g5 {[%emt 0:05:33]} 25. g4 {[%emt 0:04:55]} gxf4 {[%emt 0:01:15]} 26. gxh5 {[%emt 0:05:32]} fxe3 {[%emt 0:05:22]} 27. Qxe3 {[%emt 0:02:14]} f4 28. Qe2 Qe7 {[%emt 0:13:56]} 29. Nf3 {[%emt 0:01:30]} Kh8 {[%emt 0:01:19]} 30. Be4 {[%emt 0:04:05]} Rg8+ {[%emt 0:02:15]} 31. Kh1 {[%emt 0:00:34]} Ba6 {[%emt 0:02:55]} 32. Bd3 {[%emt 0:00:01]} Bb7 {[%emt 0:01:09]} 33. Be4 {[%emt 0:02:06]} Ba6 {[%emt 0:00:06]} 34. Bd3 {[%emt 0:00:00]} Bb7 {[%emt 0:00:07]} 35. Kh2 {[%emt 0:01:09]} Raf8 {[%emt 0:04:02]} 36. Qc2 {[%emt 0:01:40]} Bd6 {[%emt 0:01:01]} 37. Bg6 {[%emt 0:00:15]} Qf6 {[%emt 0:00:33]} 38. Bh4 {[%emt 0:00:18]} Qg7 {[%emt 0:00:11]} 39. Qd3 {[%emt 0:01:21]} Bc8 {[%emt 0:00:57]} 40. Rc6 {[%emt 0:00:00]} Bb8 {[%emt 0:00:00]} 41. Rc5 {[%emt 0:04:18]} Qa7 {[%emt 0:06:55]} 42. Rxc8 {[%emt 0:04:26]} Rxc8 {[%emt 0:01:56]} 43. Bf6+ {[%emt 0:00:09]} Rg7 {[%emt 0:01:57]} 44. Ne5 {[%emt 0:05:43]} Kg8 {[%emt 0:00:13]} 45. Bxg7 Kxg7 46. Rxf4 {[%emt 0:05:14]} Rc7 {[%emt 0:01:47]} 47. Bh7 {[%emt 0:01:30]} Kh8 {[%emt 0:00:39]} 48. Qg6 {[%emt 0:03:57]} 1-0

[Event "WYCC 2018 G14"]
[Site "Halkidiki"]
[Date "2018.10.23"]
[Round "5"]
[White "Rodriguez Redondo, Adhara"]
[Black "Zeliantsova, Kseniya"]
[Result "1-0"]
[ECO "B40"]
[WhiteElo "1911"]
[BlackElo "1804"]
[Annotator "NA"]
[PlyCount "77"]
[EventDate "2018.10.20"]
[EventType "swiss"]
[EventCountry "GRE"]
[SourceTitle "playchess.com"]
[Source "ChessBase"]
[SourceQuality "1"]
[TimeControl "40/5400+30:1800+30"]

1. e4 {[%emt 0:00:00]} c5 {[%emt 0:00:00]} 2. Nf3 {[%emt 0:00:00]} e6 {[%emt 0:00:00]} 3. d4 {[%emt 0:00:00]} cxd4 {[%emt 0:00:00]} 4. Nxd4 {[%emt 0:00:00]} Nf6 {[%emt 0:00:00]} 5. Nc3 {[%emt 0:00:00]} Nc6 {[%emt 0:00:00]} 6. Ndb5 {[%emt 0:00:12]} Bb4 {[%emt 0:00:00]} 7. a3 {[%emt 0:00:16]} Bxc3+ {[%emt 0:00:00]} 8. Nxc3 {[%emt 0:00:04]} d5 {[%emt 0:00:05]} 9. exd5 {[%emt 0:00:13]} exd5 {[%emt 0:00:05]} 10. Bd3 {[%emt 0:00:15]} O-O {[%emt 0:00:57]} 11. O-O {[%emt 0:00:27]} h6 {[%emt 0:01:39]} 12. h3 {[%emt 0:04:29]} Be6 {[%emt 0:05:07]} 13. Re1 {[%emt 0:03:37]} d4 {[%emt 0:01:56]} 14. Ne2 {[%emt 0:02:13]} Re8 {[%emt 0:05:45]} 15. b4 {[%emt 0:04:32]} Bd5 {[%emt 0:13:22]} 16. b5 {[%emt 0:14:45]} Na5 {[%emt 0:05:22]} 17. Bb2 {[%emt 0:05:01]} Nh5 {[%emt 0:06:49]} 18. Nxd4 {[%emt 0:14:38]} Rxe1+ {[%emt 0:12:34]} 19. Qxe1 {[%emt 0:00:05]} Qg5 {[%emt 0:07:19]} 20. Bf1 {[%emt 0:07:31]} Nc4 {[%emt 0:02:08]} 21. Bc1 {[%emt 0:08:33]} Qf6 {[%emt 0:01:50]} 22. c3 {[%emt 0:03:27]} Nd6 {[%emt 0:06:12]} 23. Be3 {[%emt 0:10:06]} Re8 {[%emt 0:01:42]} 24. Qd1 {[%emt 0:03:26]} Ng3 {[%emt 0:08:56]} 25. Qg4 {[%emt 0:07:15]} Nge4 {[%emt 0:03:48]} 26. Rc1 {[%emt 0:02:18]} Nc4 {[%emt 0:07:11]} 27. Bxc4 {[%emt 0:00:12]} Bxc4 {[%emt 0:00:03]} 28. Nf5 {[%emt 0:04:04]} Bxb5 {[%emt 0:09:19]} 29. Bd4 {[%emt 0:05:58]} Qg6 {[%emt 0:01:18]} 30. f3 {[%emt 0:00:43]} Ng5 {[%emt 0:00:40]} 31. h4 {[%emt 0:00:36]} Bd3 {[%emt 0:00:48]} 32. Nxg7 {[%emt 0:00:26]} Re2 {[%emt 0:00:30]} 33. hxg5 {[%emt 0:00:30]} hxg5 {[%emt 0:00:21]} 34. Qc8+ {[%emt 0:00:28]} Kh7 {[%emt 0:00:05]} 35. Qh3+ {[%emt 0:00:13]} Kg8 {[%emt 0:00:05]} 36. Qc8+ {[%emt 0:00:03]} Kh7 {[%emt 0:00:04]} 37. Qh3+ {[%emt 0:00:32]} Kg8 {[%emt 0:00:04]} 38. Ne8 {[%emt 0:00:43]} Kf8 {[%emt 0:01:51]} 39. Nf6 {[%emt 0:00:52]} 1-0